bitfinex/quotes_SOLUSD_20250924
["timestamp","ask_amount","ask_price","bid_price","bid_amount"]
[1758732150347,0.22,214.85,214.81,36.18]
[1758732150776,0.22,214.84,214.77,2.85206723]
[1758732150961,0.22,214.83,214.78,36.18]
[1758732151278,4.65506005,214.82,214.78,36.18]
[1758732151464,4.65506005,214.82,214.78,38.32206723]
[1758732151662,2.36206723,214.81,214.74,2.14206723]
[1758732151852,2.36206723,214.8,214.75,36.18]
[1758732152063,0.22,214.8,214.75,36.18]
[1758732152385,18.6547774,214.82,214.76,0.71]
[1758732152884,18.4347774,214.82,214.75,38.32206723]
[1758732153083,0.22,214.81,214.75,38.32206723]
[1758732153292,30.87537032,214.81,214.75,38.32206723]
[1758732153792,4.65537032,214.81,214.76,0.71]
[1758732154095,4.65537032,214.81,214.77,0.71]
[1758732154590,28.14206723,214.82,214.76,2.14206723]
[1758732154767,26.0,214.82,214.78,0.71]
[1758732154969,0.22,214.83,214.78,0.71]
[1758732155382,0.22,214.83,214.79,0.71]
[1758732155383,4.65486272,214.83,214.79,0.71]
[1758732155711,4.65441005,214.85,214.79,2.85206723]
[1758732155894,134.6,214.84,214.8,0.71]
[1758732156096,134.6,214.84,214.8,2.85206723]
[1758732156291,134.6,214.84,214.8,2.14206723]
[1758732156468,134.6,214.84,214.81,0.71]
[1758732156875,139.25470239,214.84,214.79,39.03206723]
[1758732157080,139.25470239,214.84,214.79,36.89]
[1758732157599,139.47470239,214.84,214.79,36.89]
[1758732158689,0.22,214.83,214.78,36.18]
[1758732158994,4.87506005,214.82,214.78,36.18]
[1758732159202,4.87506005,214.82,214.77,38.32206723]
[1758732159379,134.6,214.81,214.77,38.32206723]
[1758732159697,134.6,214.81,214.77,36.18]
[1758732160075,134.6,214.81,214.77,36.89]
[1758732161091,134.6,214.81,214.77,36.18]
[1758732161295,139.25531534,214.81,214.76,0.71]
[1758732161495,0.22,214.8,214.76,36.18]
[1758732161679,141.39738257,214.81,214.76,36.18]
[1758732161997,141.61738257,214.81,214.76,36.89]
[1758732162196,139.47531534,214.81,214.76,36.89]
[1758732162385,139.25531534,214.81,214.77,0.71]
[1758732163975,139.25531534,214.81,214.76,36.18]
[1758732164188,139.47531534,214.81,214.76,36.89]
[1758732164391,139.25531534,214.81,214.76,36.18]
[1758732164598,139.25531534,214.81,214.77,0.71]
[1758732164808,139.47531534,214.81,214.76,36.18]
[1758732165098,139.47531534,214.81,214.76,36.89]
[1758732165301,139.25531534,214.81,214.77,2.85206723]
[1758732165608,134.6,214.81,214.8,2.14206723]
[1758732165776,134.6,214.81,214.79,2.14206723]
[1758732166100,139.25535857,214.81,214.77,0.71]
[1758732166398,139.25535857,214.81,214.78,0.71]
[1758732166905,139.25535857,214.81,214.77,2.14206723]
[1758732167096,139.25535857,214.81,214.77,2.85206723]
[1758732169582,139.25535857,214.81,214.77,0.71]
[1758732170793,2.14206723,214.78,214.72,0.68]
[1758732171007,2.14206723,214.78,214.72,36.84]
[1758732171188,2.36206723,214.78,214.72,36.84]
[1758732171385,6.79777745,214.79,214.72,38.30206723]
[1758732171701,6.79777745,214.79,214.73,0.68]
[1758732171886,2.14206723,214.78,214.73,0.68]
[1758732172087,16.29498579,214.79,214.74,0.68]
[1758732172288,2.14206723,214.78,214.74,0.68]
[1758732174109,134.6,214.77,214.74,0.68]
[1758732174311,139.2562467,214.77,214.74,0.68]
[1758732175692,141.39831393,214.77,214.74,0.68]
[1758732175913,131.39831393,214.77,214.74,0.68]
[1758732176693,2.14206723,214.75,214.68,2.82206723]
[1758732176891,124.82,214.76,214.65,0.68]
[1758732176892,2.14206723,214.73,214.65,0.68]
[1758732177082,2.14206723,214.72,214.66,38.98206723]
[1758732177286,2.14206723,214.71,214.66,0.68]
[1758732177482,2.14206723,214.68,214.63,0.68]
[1758732177881,2.14206723,214.68,214.62,40.73594891]
[1758732177882,2.14206723,214.66,214.62,2.43388168]
[1758732178086,2.14206723,214.66,214.61,0.68]
[1758732178308,6.80081402,214.65,214.59,33.10206723]
[1758732178489,6.80081402,214.65,214.58,2.43526412]
[1758732178490,2.14206723,214.64,214.58,38.98206723]
[1758732178689,2.14206723,214.64,214.58,36.84]
[1758732178914,2.14206723,214.63,214.58,36.84]
[1758732179099,2.14206723,214.63,214.59,0.68]
[1758732180811,6.80136404,214.63,214.59,0.68]
[1758732181006,6.80136404,214.63,214.58,36.16]
[1758732181199,6.80136404,214.63,214.58,36.82]
[1758732182013,2.14206723,214.62,214.58,36.82]
[1758732182233,2.14206723,214.61,214.55,7.0962484]
[1758732182417,6.80211662,214.59,214.55,0.66]
[1758732182598,3.34979648,214.59,214.55,36.82]
[1758732183122,3.34979648,214.59,214.56,0.66]
[1758732183303,3.34979648,214.6,214.56,0.66]
[1758732184730,29.34979648,214.63,214.56,8.67049473]
[1758732184899,34.00903688,214.63,214.57,0.66]
[1758732185093,3.34979648,214.62,214.57,0.66]
[1758732185297,3.34979648,214.62,214.58,0.66]
[1758732185587,3.34979648,214.61,214.58,0.66]
[1758732185804,3.34979648,214.61,214.56,8.67049473]
[1758732186012,3.34979648,214.61,214.57,0.66]
[1758732186216,3.34979648,214.62,214.57,0.66]
[1758732186593,3.34979648,214.63,214.58,4.66026656]
[1758732186790,3.34979648,214.63,214.59,0.66]
[1758732187008,3.34979648,214.63,214.6,0.66]
[1758732187312,3.34979648,214.62,214.58,5.32026656]
[1758732187516,3.34979648,214.61,214.56,8.01034663]
[1758732187715,3.34979648,214.61,214.57,0.66]
[1758732187910,3.34979648,214.61,214.58,0.66]
[1758732188413,3.56979648,214.61,214.55,44.83070695]
[1758732188619,124.6,214.6,214.56,0.66]
[1758732188808,124.6,214.6,214.52,28.43579266]
[1758732188809,3.34979648,214.57,214.52,2.43579266]
[1758732189118,0.22,214.59,214.44,0.66]
[1758732189119,3.34979648,214.53,214.44,0.66]
[1758732189301,26.0,214.55,214.44,0.66]
[1758732189302,3.34979648,214.47,214.44,0.66]
[1758732189696,3.34979648,214.45,214.4,0.86]
[1758732189891,0.22,214.46,214.4,0.86]
[1758732190407,3.34979648,214.42,214.4,0.86]
[1758732191022,3.34979648,214.43,214.4,0.86]
[1758732191608,3.34979648,214.42,214.4,0.86]
[1758732191810,3.34979648,214.41,214.4,0.2]
[1758732193600,26.0,214.44,214.4,0.2]
[1758732193828,3.34979648,214.43,214.4,4.86414437]
[1758732194318,3.34979648,214.47,214.41,4.00979648]
[1758732194497,3.34979648,214.47,214.42,0.66]
[1758732194693,3.34979648,214.47,214.42,5.32368038]
[1758732194921,26.0,214.46,214.42,5.32368038]
[1758732195122,29.34979648,214.46,214.42,4.66368038]
[1758732195425,3.34979648,214.46,214.43,0.66]
[1758732196112,3.34979648,214.48,214.44,0.66]
[1758732196314,3.34979648,214.48,214.45,0.66]
[1758732196516,3.34979648,214.49,214.45,0.66]
[1758732196824,3.34979648,214.5,214.46,0.66]
[1758732197307,3.34979648,214.5,214.47,0.66]
[1758732197513,26.0,214.52,214.47,0.66]
[1758732197823,26.0,214.52,214.48,0.66]
[1758732198031,3.34979648,214.53,214.49,0.66]
[1758732198231,26.0,214.52,214.49,0.66]
[1758732198415,29.34979648,214.52,214.49,0.66]
[1758732198727,26.0,214.51,214.49,0.66]
[1758732198920,3.34979648,214.52,214.49,0.66]
[1758732199827,3.34979648,214.52,214.41,36.18]
[1758732199828,3.34979648,214.5,214.42,40.84374405]
[1758732200009,3.34979648,214.47,214.43,0.66]
[1758732200324,3.34979648,214.48,214.44,0.66]
[1758732200832,3.34979648,214.48,214.44,5.32328199]
[1758732201124,3.34979648,214.48,214.45,0.67]
[1758732201729,0.22,214.51,214.44,4.6632193]
[1758732202032,3.34979648,214.5,214.46,0.67]
[1758732202211,30.66174437,214.52,214.46,0.67]
[1758732202532,3.34979648,214.49,214.46,0.67]
[1758732202831,3.34979648,214.49,214.44,5.3332193]
[1758732203023,3.34979648,214.49,214.45,0.67]
[1758732203223,8.0120432,214.49,214.45,0.67]
[1758732203424,3.34979648,214.48,214.45,0.67]
[1758732203811,134.6,214.47,214.45,0.67]
[1758732204013,137.94979648,214.47,214.45,0.67]
[1758732204209,134.6,214.47,214.45,0.67]
[1758732205211,134.6,214.47,214.46,4.01979648]
[1758732207106,134.6,214.47,214.46,8.68267067]
[1758732207737,0.22,214.57,214.46,16.99005967]
[1758732208043,3.34979648,214.57,214.5,3.34979648]
[1758732208213,3.34979648,214.57,214.51,0.67]
[1758732208946,3.34979648,214.57,214.52,4.66157001]
[1758732209114,3.34979648,214.57,214.53,0.67]
[1758732209813,3.34979648,214.57,214.52,4.66157001]
[1758732210012,3.34979648,214.57,214.53,0.67]
[1758732210539,4.6592781,214.63,214.54,4.01979648]
[1758732210870,4.87875111,214.65,214.56,19.66224986]
[1758732211011,3.34979648,214.63,214.57,0.67]
[1758732211538,26.0,214.63,214.57,4.01979648]
[1758732211737,26.0,214.63,214.58,0.67]
[1758732211945,29.34979648,214.63,214.59,0.67]
[1758732212339,3.34979648,214.64,214.57,3.34979648]
[1758732212529,3.34979648,214.64,214.6,0.67]
[1758732212730,3.34979648,214.63,214.58,0.67]
[1758732213044,3.34979648,214.63,214.57,3.34979648]
[1758732213212,3.34979648,214.63,214.48,36.18]
[1758732213213,3.34979648,214.58,214.5,13.59559401]
[1758732213413,3.34979648,214.55,214.49,36.85]
[1758732213710,3.34979648,214.55,214.5,0.67]
[1758732213912,3.34979648,214.55,214.51,0.67]
[1758732214128,3.34979648,214.55,214.52,0.67]
[1758732214327,3.34979648,214.55,214.52,5.33137424]
[1758732216754,3.34979648,214.53,214.48,0.67]
[1758732217050,3.34979648,214.52,214.48,0.67]
[1758732218042,3.34979648,214.52,214.49,0.67]
[1758732219242,3.34979648,214.52,214.49,5.33212285]
[1758732220030,3.34979648,214.53,214.49,5.33212285]
[1758732220628,3.34979648,214.52,214.49,5.33212285]
[1758732221251,3.34979648,214.52,214.48,4.66243938]
[1758732221450,3.34979648,214.52,214.48,5.33243938]
[1758732221832,3.34979648,214.51,214.46,41.53269535]
[1758732222042,3.34979648,214.5,214.46,41.53269535]
[1758732222252,3.34979648,214.5,214.46,40.86269535]
[1758732222449,3.34979648,214.5,214.46,0.67]
[1758732223040,3.34979648,214.47,214.43,5.33341657]
[1758732223227,3.34979648,214.47,214.41,0.67]
[1758732223228,3.34979648,214.46,214.41,0.67]
[1758732223432,3.34979648,214.47,214.41,4.01979648]
[1758732223633,29.34979648,214.47,214.41,4.01979648]
[1758732224660,8.01248184,214.47,214.41,8.68356018]
[1758732225151,3.34979648,214.46,214.41,0.67]
[1758732225371,3.34979648,214.45,214.41,0.67]
[1758732226664,3.34979648,214.46,214.4,44.39396705]
[1758732226826,3.34979648,214.46,214.41,0.67]
[1758732227240,3.34979648,214.46,214.42,0.67]
[1758732227856,3.34979648,214.46,214.42,5.33364305]
[1758732228769,3.34979648,214.46,214.4,36.38]
[1758732228978,3.34979648,214.46,214.4,0.2]
[1758732228979,3.34979648,214.43,214.4,0.2]
[1758732229856,3.34979648,214.41,214.4,0.2]
[1758732230056,4.88337845,214.44,214.4,0.2]
[1758732230367,3.34979648,214.43,214.4,0.2]
[1758732230747,3.34979648,214.43,214.4,0.89]
[1758732230948,3.34979648,214.44,214.4,5.55417099]
[1758732231176,0.22,214.46,214.4,5.55417099]
[1758732231177,29.34979648,214.47,214.41,0.69]
[1758732232064,29.34979648,214.47,214.42,4.66374405]
[1758732232265,29.03420656,214.47,214.42,5.35374405]
[1758732232468,3.34979648,214.47,214.43,0.69]
[1758732232680,11.65375262,214.53,214.44,3.34979648]
[1758732232681,134.6,214.49,214.44,3.34979648]
[1758732232872,134.6,214.49,214.45,0.69]
[1758732233176,3.34979648,214.53,214.47,3.34979648]
[1758732233381,0.36216157,214.56,214.48,0.69]
[1758732233547,3.34979648,214.53,214.48,0.69]
[1758732233747,3.34979648,214.53,214.49,0.69]
[1758732233969,3.34979648,214.53,214.49,5.35216257]
[1758732237390,3.34979648,214.53,214.49,0.69]
[1758732237974,3.34979648,214.53,214.49,5.35210586]
[1758732238359,30.66114356,214.54,214.49,5.35210586]
[1758732238560,3.34979648,214.53,214.49,5.35210586]
[1758732239368,134.6,214.52,214.49,5.35210586]
[1758732242189,137.94979648,214.52,214.49,5.35210586]
[1758732242688,134.6,214.51,214.5,0.7]
[1758732243886,134.6,214.51,214.5,5.36200466]
[1758732244187,134.6,214.51,214.5,0.7]
[1758732244872,134.6,214.51,214.5,5.36200466]
[1758732245767,134.6,214.51,214.5,7.5069654]
[1758732247189,134.6,214.56,214.5,19.16197705]
[1758732247385,134.6,214.56,214.54,2.14496074]
[1758732247588,134.6,214.56,214.55,2.84496074]
[1758732247888,6.80435254,214.63,214.55,2.84496074]
[1758732248092,6.80435254,214.63,214.57,2.14496074]
[1758732248093,4.6593918,214.63,214.57,2.14496074]
[1758732248294,26.0,214.64,214.59,2.14496074]
[1758732248478,134.6,214.65,214.6,2.84496074]
[1758732248673,134.6,214.65,214.61,2.84496074]
[1758732248994,26.44150215,214.67,214.62,2.84496074]
[1758732249291,26.66150215,214.67,214.61,2.14496074]
[1758732249476,26.66150215,214.67,214.61,2.84496074]
[1758732250067,2.14496074,214.66,214.6,2.14496074]
[1758732251188,2.14496074,214.64,214.58,36.18]
[1758732251374,2.14496074,214.64,214.59,2.14496074]
[1758732251569,2.14496074,214.65,214.59,2.14496074]
[1758732251764,2.14496074,214.65,214.6,0.7]
[1758732251970,0.22,214.66,214.6,7.50471991]
[1758732251971,7.02365416,214.66,214.6,7.50471991]
[1758732252497,2.36496074,214.66,214.6,7.50471991]
[1758732252973,7.02357558,214.66,214.6,2.84496074]
[1758732253175,2.36496074,214.66,214.6,7.50472664]
[1758732253390,7.02354969,214.66,214.6,7.50472664]
[1758732254283,134.6,214.65,214.6,7.50472664]
[1758732254470,134.6,214.65,214.6,2.84496074]
[1758732254685,136.74496074,214.65,214.6,0.7]
[1758732255393,136.74496074,214.65,214.6,2.84496074]
[1758732255394,134.6,214.65,214.6,2.84496074]
[1758732256082,139.47893495,214.65,214.6,2.84496074]
[1758732256776,139.47893495,214.65,214.6,2.14496074]
[1758732256998,139.47893495,214.65,214.58,0.7]
[1758732256999,0.22,214.64,214.58,0.7]
[1758732257297,0.22,214.64,214.57,4.66028413]
[1758732257298,2.36496074,214.63,214.57,2.14496074]
[1758732258403,4.659398,214.62,214.58,2.14496074]
[1758732260083,134.6,214.61,214.58,2.14496074]
[1758732261791,139.25967431,214.61,214.58,2.14496074]
[1758732262001,134.6,214.61,214.58,2.14496074]
[1758732262376,139.25973112,214.61,214.58,2.14496074]
[1758732263292,134.6,214.61,214.57,2.14496074]
[1758732263675,134.6,214.61,214.57,2.85496074]
[1758732264406,139.25967829,214.61,214.58,2.14496074]
[1758732266207,134.6,214.6,214.57,2.14496074]
[1758732266511,134.6,214.59,214.57,2.85496074]
[1758732266692,134.6,214.59,214.57,7.51539957]
[1758732267299,134.6,214.59,214.57,2.85496074]
[1758732268098,134.6,214.59,214.58,2.14496074]
[1758732268705,134.6,214.59,214.57,2.85496074]
[1758732269283,134.6,214.59,214.57,7.5154279]
[1758732269697,134.6,214.59,214.58,2.14496074]
[1758732271183,134.6,214.59,214.58,7.5152273]
[1758732271886,13.996095,214.71,214.58,7.5152273]
[1758732271887,134.6,214.66,214.58,19.16589371]
[1758732272093,134.6,214.65,214.64,2.14496074]
[1758732272298,134.6,214.65,214.63,2.14496074]
[1758732272501,134.6,214.65,214.6,0.71]
[1758732272693,134.6,214.65,214.62,2.14496074]
[1758732273522,139.25881176,214.65,214.61,2.14496074]
[1758732273815,0.22,214.64,214.6,2.14496074]
[1758732274392,0.22,214.64,214.6,28.14496074]
[1758732274917,4.87908155,214.64,214.59,2.85496074]
[1758732275210,4.65908155,214.64,214.57,4.66044223]
[1758732275414,134.82,214.63,214.58,26.0]
[1758732275608,136.96496074,214.63,214.58,26.0]
[1758732275839,136.96496074,214.63,214.57,28.85496074]
[1758732276491,2.14496074,214.62,214.57,26.0]
[1758732276691,2.14496074,214.62,214.57,0.71]
[1758732276890,139.25924678,214.63,214.58,2.85496074]
[1758732277118,139.47924678,214.63,214.58,2.85496074]
[1758732277913,134.6,214.63,214.59,0.71]
[1758732278220,134.6,214.63,214.61,2.14496074]
[1758732278410,134.6,214.63,214.61,2.85496074]
[1758732278606,139.25918451,214.63,214.59,2.14496074]
[1758732279112,139.47918451,214.63,214.58,2.14496074]
[1758732279415,139.47918451,214.63,214.58,2.85496074]
[1758732279591,139.25921489,214.63,214.59,2.85496074]
[1758732280812,134.6,214.62,214.59,2.85496074]
[1758732281011,134.6,214.62,214.59,7.51491482]
[1758732281210,134.6,214.62,214.61,2.14496074]
[1758732281520,134.6,214.62,214.61,2.85496074]
[1758732282720,134.6,214.62,214.61,2.14496074]
[1758732284427,139.25941818,214.62,214.58,2.85496074]
[1758732284603,134.6,214.62,214.58,2.85496074]
[1758732284923,139.25942769,214.62,214.58,2.85496074]
[1758732285119,139.25942769,214.62,214.59,0.71]
[1758732285305,139.47942769,214.62,214.56,4.66067397]
[1758732285501,134.6,214.61,214.56,4.66067397]
[1758732285707,134.6,214.61,214.57,2.14496074]
[1758732286719,134.6,214.61,214.58,0.71]
[1758732286925,134.6,214.61,214.58,2.14496074]
[1758732287427,134.6,214.61,214.59,2.85496074]
[1758732287611,134.6,214.61,214.59,2.14496074]
[1758732288007,134.6,214.61,214.58,2.14496074]
[1758732288206,134.6,214.61,214.58,2.85496074]
[1758732288607,134.6,214.61,214.58,2.14496074]
[1758732288807,134.6,214.61,214.58,0.71]
[1758732289207,134.6,214.61,214.6,2.14496074]
[1758732289413,134.6,214.61,214.6,2.85496074]
[1758732289819,38.44712231,214.66,214.6,2.85496074]
[1758732290433,4.65876523,214.65,214.6,7.51471399]
[1758732290732,4.87876523,214.65,214.6,7.51471399]
[1758732291027,0.22,214.64,214.59,2.14496074]
[1758732291211,0.22,214.63,214.58,2.14496074]
[1758732291629,2.28712231,214.64,214.58,2.82496074]
[1758732292207,2.14496074,214.63,214.56,4.66065476]
[1758732292430,4.65961511,214.61,214.56,6.8056155]
[1758732292616,4.65961511,214.61,214.57,0.68]
[1758732292820,4.65961511,214.61,214.57,2.82496074]
[1758732293306,4.65961511,214.61,214.56,6.8056155]
[1758732293522,4.65961511,214.61,214.56,7.4856155]
[1758732294507,4.87961511,214.61,214.56,2.82496074]
[1758732294907,4.65961511,214.61,214.56,2.82496074]
[1758732295313,2.14496074,214.62,214.56,6.80558551]
[1758732295514,2.14496074,214.62,214.57,0.68]
[1758732295840,134.6,214.61,214.57,0.68]
[1758732296138,134.6,214.61,214.57,2.82496074]
[1758732296925,139.25973138,214.61,214.57,0.68]
[1758732297133,139.25973138,214.61,214.57,2.82496074]
[1758732297431,134.6,214.61,214.57,7.48543539]
[1758732297612,134.6,214.61,214.6,2.14496074]
[1758732297821,134.6,214.61,214.6,2.82496074]
[1758732299035,134.6,214.61,214.6,7.48479298]
[1758732299410,134.6,214.61,214.56,0.68]
[1758732299609,2.14496074,214.59,214.53,0.68]
[1758732299920,134.6,214.58,214.53,2.82496074]
[1758732300103,134.6,214.58,214.54,0.66]
[1758732300307,136.96496074,214.58,214.53,2.14496074]
[1758732300635,134.6,214.58,214.53,2.80496074]
[1758732300845,134.6,214.58,214.53,2.14496074]
[1758732301027,4.66048375,214.57,214.53,2.14496074]
[1758732301229,2.14496074,214.54,214.46,2.43580666]
[1758732301423,136.88712231,214.53,214.47,2.14496074]
[1758732301627,134.74216157,214.53,214.48,2.14496074]
[1758732301834,134.74216157,214.53,214.48,2.80496074]
[1758732302020,134.82,214.52,214.45,0.66]
[1758732302228,134.82,214.52,214.49,2.14496074]
[1758732302229,134.6,214.52,214.49,2.14496074]
[1758732302435,134.6,214.52,214.51,2.14496074]
[1758732302739,134.6,214.52,214.51,2.80496074]
[1758732303326,134.6,214.52,214.51,7.46674806]
[1758732303723,134.6,214.52,214.51,0.66]
[1758732303938,134.6,214.52,214.49,2.14496074]
[1758732304248,134.6,214.52,214.49,2.80496074]
[1758732304444,134.6,214.52,214.47,5.32264541]
[1758732304647,134.6,214.52,214.48,3.351651]
[1758732304943,134.6,214.52,214.48,4.011651]
[1758732305146,134.6,214.51,214.46,3.351651]
[1758732305539,134.6,214.51,214.46,8.67443825]
[1758732305727,134.6,214.51,214.47,0.66]
[1758732305930,134.6,214.51,214.47,4.011651]
[1758732306837,139.26191214,214.51,214.46,8.01443825]
[1758732307039,139.26191214,214.51,214.46,8.67443825]
[1758732307246,139.26191214,214.51,214.46,8.01443825]
[1758732307462,134.6,214.51,214.47,5.3226267]
[1758732307757,134.6,214.51,214.47,0.66]
[1758732307940,134.82,214.5,214.45,3.351651]
[1758732308134,134.6,214.5,214.45,3.351651]
[1758732308368,134.6,214.5,214.45,4.011651]
[1758732308732,134.6,214.5,214.46,0.66]
[1758732309629,134.6,214.5,214.45,4.66306805]
[1758732309831,134.6,214.5,214.46,0.66]
[1758732310140,139.26208172,214.5,214.46,0.66]
[1758732310338,139.26208172,214.5,214.45,3.351651]
[1758732310339,139.48208172,214.5,214.43,5.32332036]
[1758732310533,142.83373272,214.5,214.44,3.351651]
[1758732310855,139.48208172,214.5,214.45,3.351651]
[1758732311447,139.26208172,214.5,214.45,4.011651]
[1758732312146,0.14216157,214.49,214.45,0.66]
[1758732312348,0.14216157,214.49,214.45,3.351651]
[1758732313457,0.14216157,214.49,214.45,4.011651]
[1758732313650,134.6,214.48,214.45,8.67466262]
[1758732313851,134.6,214.48,214.47,3.351651]
[1758732314156,134.6,214.48,214.47,4.011651]
[1758732314940,134.6,214.48,214.46,3.351651]
[1758732315140,134.6,214.48,214.45,4.66301162]
[1758732315338,134.6,214.48,214.46,8.01438246]
[1758732315555,134.6,214.48,214.47,3.351651]
[1758732315759,134.6,214.48,214.45,0.66]
[1758732315963,134.6,214.48,214.47,3.351651]
[1758732316943,134.6,214.48,214.47,4.011651]
[1758732317648,134.6,214.48,214.47,8.67430778]
[1758732318238,134.6,214.48,214.47,3.351651]
[1758732318446,134.6,214.48,214.47,4.011651]
[1758732318960,134.6,214.48,214.43,36.18]
[1758732318961,134.6,214.48,214.45,3.351651]
[1758732319542,134.6,214.47,214.45,4.011651]
[1758732319744,3.49381257,214.52,214.45,5.32309162]
[1758732319745,134.6,214.46,214.45,5.32309162]
[1758732319942,134.6,214.46,214.45,8.67474262]
[1758732320139,3.351651,214.49,214.42,3.351651]
[1758732320345,0.22,214.46,214.42,3.351651]
[1758732320548,134.6,214.45,214.41,3.351651]
[1758732320901,134.82,214.45,214.41,3.351651]
[1758732321155,134.6,214.45,214.41,3.351651]
[1758732322152,134.6,214.45,214.41,8.01556227]
[1758732323167,134.6,214.45,214.44,3.351651]
[1758732323460,134.6,214.45,214.43,3.351651]
[1758732323658,134.82,214.45,214.41,3.351651]
[1758732323862,134.82,214.45,214.42,3.351651]
[1758732324160,134.6,214.45,214.42,3.351651]
[1758732325240,134.6,214.45,214.42,4.021651]
[1758732325442,134.6,214.44,214.41,3.351651]
[1758732325648,134.6,214.44,214.42,4.021651]
[1758732326063,134.6,214.44,214.43,5.33352655]
[1758732326262,134.6,214.44,214.43,8.68517755]
[1758732329347,134.6,214.44,214.41,8.68540676]
[1758732329749,134.6,214.44,214.42,3.351651]
[1758732330156,134.6,214.44,214.42,8.01535296]
[1758732330552,134.6,214.44,214.43,4.021651]
[1758732331967,134.6,214.44,214.43,8.68517755]
[1758732335559,134.6,214.44,214.43,4.66352655]
[1758732335773,134.6,214.44,214.41,8.01561256]
[1758732335973,134.6,214.44,214.43,3.351651]
[1758732336163,134.6,214.44,214.43,4.021651]
[1758732336564,134.6,214.44,214.43,3.351651]
[1758732336764,134.6,214.44,214.42,3.351651]
[1758732337760,134.82,214.44,214.4,3.551651]
[1758732337965,134.82,214.44,214.4,8.21581558]
[1758732338161,8.01457168,214.46,214.42,3.351651]
[1758732338162,134.6,214.43,214.42,3.351651]
[1758732339261,134.6,214.43,214.42,4.021651]
[1758732339954,134.6,214.43,214.42,8.68539505]
[1758732340550,8.15562887,214.51,214.42,8.68539505]
[1758732340551,134.6,214.5,214.42,56.52475518]
[1758732340773,134.6,214.5,214.46,3.351651]
[1758732341058,134.6,214.49,214.46,3.351651]
[1758732341677,134.6,214.49,214.48,3.351651]
[1758732341861,134.6,214.49,214.48,8.68409038]
[1758732345668,134.6,214.49,214.48,8.01409038]
[1758732345902,134.6,214.49,214.47,4.662656]
[1758732346066,0.22,214.48,214.44,36.18]
[1758732346267,0.22,214.47,214.44,3.351651]
[1758732346568,0.22,214.46,214.43,3.351651]
[1758732346963,0.22,214.46,214.42,4.66373119]
[1758732347170,0.22,214.46,214.43,3.351651]
[1758732348587,0.22,214.46,214.42,3.351651]
[1758732348994,4.66276751,214.47,214.43,3.351651]
[1758732349288,4.88276751,214.47,214.43,3.351651]
[1758732349888,134.96216157,214.46,214.43,3.351651]
[1758732350062,0.22,214.45,214.41,3.351651]
[1758732350569,134.74216157,214.46,214.41,3.351651]
[1758732350762,134.96216157,214.46,214.42,3.351651]
[1758732351791,139.62512967,214.46,214.42,3.351651]
[1758732352780,139.62512967,214.46,214.41,4.6639107]
[1758732352987,139.62512967,214.46,214.42,3.351651]
[1758732355196,134.6,214.45,214.42,3.351651]
[1758732355695,134.6,214.44,214.42,3.351651]
[1758732357197,134.6,214.44,214.4,4.86416264]
[1758732357404,134.6,214.44,214.41,3.351651]
[1758732358092,139.26337731,214.44,214.4,0.2]
[1758732358299,139.26337731,214.44,214.41,3.351651]
[1758732358797,134.6,214.44,214.41,3.351651]
[1758732359485,139.26339323,214.44,214.4,3.551651]
[1758732360293,139.48339323,214.44,214.4,3.551651]
[1758732360795,134.6,214.43,214.4,3.551651]
[1758732361300,134.6,214.43,214.4,0.2]
[1758732361498,134.6,214.43,214.4,3.551651]
[1758732362602,134.6,214.43,214.4,0.2]
[1758732362899,134.6,214.43,214.4,3.551651]
[1758732363483,134.6,214.43,214.4,8.21578115]
[1758732364106,134.6,214.42,214.4,8.91578115]
[1758732364311,134.6,214.42,214.41,3.351651]